[Event "*** Titled Tuesday Blitz"]
[Site "Chess.com"]
[Date "2020.12.01"]
[Round "8"]
[White "A-S-00"]
[Black "nikitadovbnya2008"]
[Result "0-1"]
[WhiteElo "2292"]
[BlackElo "2194"]
[TimeControl "180+1"]
[EndTime "11:24:33 PST"]
[Termination "nikitadovbnya2008 won by checkmate"]

1. d4 {[%clk 0:03:00.7]} 1... Nf6 {[%clk 0:02:59.3]} 2. c4 {[%clk 0:02:59.1]}
2... e6 {[%clk 0:02:59.6]} 3. Nf3 {[%clk 0:02:58.7]} 3... b6 {[%clk 0:02:58.8]}
4. Nc3 {[%clk 0:02:58.7]} 4... Bb7 {[%clk 0:02:57]} 5. Bg5 {[%clk 0:02:59.1]}
5... Be7 {[%clk 0:02:57.3]} 6. e3 {[%clk 0:02:58.4]} 6... O-O {[%clk 0:02:57]}
7. Bd3 {[%clk 0:02:58.4]} 7... c5 {[%clk 0:02:45.6]} 8. O-O {[%clk 0:02:57.5]}
8... d6 {[%clk 0:02:45.5]} 9. Rc1 {[%clk 0:02:55.3]} 9... Nbd7 {[%clk
0:02:45.5]} 10. Bb1 {[%clk 0:02:54.6]} 10... Re8 {[%clk 0:02:42.4]} 11. e4
{[%clk 0:02:52.2]} 11... cxd4 {[%clk 0:02:41.1]} 12. Nxd4 {[%clk 0:02:51.6]}
12... a6 {[%clk 0:02:41.1]} 13. Re1 {[%clk 0:02:46.8]} 13... Rc8 {[%clk
0:02:41.1]} 14. b3 {[%clk 0:02:45.7]} 14... Qc7 {[%clk 0:02:35]} 15. f3 {[%clk
0:02:37.5]} 15... Qb8 {[%clk 0:02:34.4]} 16. Be3 {[%clk 0:02:28.9]} 16... Qa8
{[%clk 0:02:32.7]} 17. Kh1 {[%clk 0:02:14.4]} 17... Bd8 {[%clk 0:02:28.3]} 18.
Nde2 {[%clk 0:02:03.9]} 18... Bc7 {[%clk 0:02:27.2]} 19. Ng3 {[%clk 0:01:58.6]}
19... h5 {[%clk 0:02:20.3]} 20. Qd2 {[%clk 0:01:52.9]} 20... h4 {[%clk
0:02:18.1]} 21. Nf1 {[%clk 0:01:50.9]} 21... h3 {[%clk 0:02:16.7]} 22. g3 {[%clk
0:01:49.8]} 22... Ne5 {[%clk 0:02:15.7]} 23. Qf2 {[%clk 0:01:44.4]} 23... d5
{[%clk 0:02:03.3]} 24. cxd5 {[%clk 0:01:34]} 24... exd5 {[%clk 0:02:01.4]} 25.
exd5 {[%clk 0:01:33.4]} 25... Nxd5 {[%clk 0:02:00.1]} 26. Nxd5 {[%clk
0:01:26.2]} 26... Bxd5 {[%clk 0:01:58.6]} 27. Nd2 {[%clk 0:01:25.8]} 27... Nxf3
{[%clk 0:01:56.5]} 28. Nxf3 {[%clk 0:01:25.6]} 28... Bxf3+ {[%clk 0:01:55.4]}
29. Kg1 {[%clk 0:01:26.5]} 29... b5 {[%clk 0:01:48.1]} 30. Bd4 {[%clk
0:01:21.5]} 30... Ba5 {[%clk 0:01:41.1]} 31. Rxe8+ {[%clk 0:01:11.6]} 31... Rxe8
{[%clk 0:01:40.1]} 32. Rf1 {[%clk 0:01:08.3]} 32... Bh5 {[%clk 0:01:32.9]} 33.
Qf5 {[%clk 0:00:55.3]} 33... Qg2# {[%clk 0:01:31.5]} 0-1

[Event "*** Titled Tuesday Blitz"]
[Site "Chess.com"]
[Date "2020.12.01"]
[Round "8"]
[White "toog"]
[Black "Khnykin_Nikolay"]
[Result "1-0"]
[WhiteElo "2336"]
[BlackElo "2022"]
[TimeControl "180+1"]
[EndTime "11:24:44 PST"]
[Termination "toog won by resignation"]

1. e4 {[%clk 0:03:00.9]} 1... e6 {[%clk 0:02:54.5]} 2. d4 {[%clk 0:02:56.3]}
2... d5 {[%clk 0:02:52.6]} 3. Nd2 {[%clk 0:02:57.2]} 3... c5 {[%clk 0:02:51.7]}
4. exd5 {[%clk 0:02:52.2]} 4... exd5 {[%clk 0:02:51.1]} 5. Ngf3 {[%clk
0:02:51.7]} 5... Nf6 {[%clk 0:02:50.4]} 6. Bb5+ {[%clk 0:02:51]} 6... Nc6 {[%clk
0:02:46.3]} 7. O-O {[%clk 0:02:50.4]} 7... Be7 {[%clk 0:02:43.9]} 8. dxc5 {[%clk
0:02:49.3]} 8... Bxc5 {[%clk 0:02:43.1]} 9. Re1+ {[%clk 0:02:48.2]} 9... Be6
{[%clk 0:02:39.4]} 10. Nb3 {[%clk 0:02:48.1]} 10... Bb6 {[%clk 0:02:37.8]} 11.
Nbd4 {[%clk 0:02:47.7]} 11... O-O {[%clk 0:02:35.3]} 12. Bxc6 {[%clk 0:02:43.7]}
12... bxc6 {[%clk 0:02:26.5]} 13. Nxc6 {[%clk 0:02:43.6]} 13... Qd6 {[%clk
0:02:13.8]} 14. Nce5 {[%clk 0:02:36.5]} 14... Rad8 {[%clk 0:02:04]} 15. c3
{[%clk 0:02:33.2]} 15... Ne4 {[%clk 0:02:01.2]} 16. Be3 {[%clk 0:02:30.9]} 16...
Bxe3 {[%clk 0:01:58.7]} 17. Rxe3 {[%clk 0:02:31.8]} 17... f6 {[%clk 0:01:42.3]}
18. Nd3 {[%clk 0:02:23.6]} 18... Bg4 {[%clk 0:01:40]} 19. h3 {[%clk 0:02:19.4]}
19... Bh5 {[%clk 0:01:36.3]} 20. Qa4 {[%clk 0:02:10.5]} 20... Rfe8 {[%clk
0:01:31.2]} 21. Nd4 {[%clk 0:02:09.7]} 21... a6 {[%clk 0:01:14.8]} 22. Rae1
{[%clk 0:02:08]} 22... Bg6 {[%clk 0:01:05.3]} 23. f3 {[%clk 0:01:58.3]} 23...
Nc5 {[%clk 0:00:29.1]} 24. Rxe8+ {[%clk 0:01:55.9]} 24... Bxe8 {[%clk 0:00:17]}
25. Rxe8+ {[%clk 0:01:54.2]} 25... Kf7 {[%clk 0:00:14.7]} 26. Rxd8 {[%clk
0:01:53.5]} 26... Qxd8 {[%clk 0:00:13.7]} 27. Nxc5 {[%clk 0:01:52.6]} 27... Qd6
{[%clk 0:00:10.5]} 28. Qd7+ {[%clk 0:01:51.7]} 28... Qxd7 {[%clk 0:00:10.3]} 29.
Nxd7 {[%clk 0:01:52.6]} 29... Ke7 {[%clk 0:00:08.9]} 30. Nb6 {[%clk 0:01:53.5]}
1-0

[Event "*** Titled Tuesday Blitz"]
[Site "Chess.com"]
[Date "2020.12.01"]
[Round "8"]
[White "Gerasimenyuk_Miha"]
[Black "Aborigen_came"]
[Result "1-0"]
[WhiteElo "2435"]
[BlackElo "2717"]
[TimeControl "180+1"]
[EndTime "11:24:49 PST"]
[Termination "Gerasimenyuk_Miha won by resignation"]

1. d4 {[%clk 0:02:57.4]} 1... e6 {[%clk 0:02:58]} 2. Nf3 {[%clk 0:02:57.4]} 2...
Nf6 {[%clk 0:02:54.2]} 3. Bg5 {[%clk 0:02:57.1]} 3... h6 {[%clk 0:02:52]} 4. Bf4
{[%clk 0:02:57]} 4... b6 {[%clk 0:02:49.9]} 5. e3 {[%clk 0:02:57]} 5... Bb7
{[%clk 0:02:49.6]} 6. Bd3 {[%clk 0:02:54.6]} 6... Nh5 {[%clk 0:02:48.3]} 7. Be5
{[%clk 0:02:53.3]} 7... d6 {[%clk 0:02:47.9]} 8. Bg3 {[%clk 0:02:52.7]} 8...
Nxg3 {[%clk 0:02:47.3]} 9. fxg3 {[%clk 0:02:52.6]} 9... Nd7 {[%clk 0:02:42.7]}
10. Nbd2 {[%clk 0:02:52.6]} 10... g6 {[%clk 0:02:32.8]} 11. O-O {[%clk
0:02:49.6]} 11... Bg7 {[%clk 0:02:32.5]} 12. c3 {[%clk 0:02:49.6]} 12... Qe7
{[%clk 0:02:20.1]} 13. e4 {[%clk 0:02:47.6]} 13... a6 {[%clk 0:01:59.9]} 14. Qe2
{[%clk 0:02:46.4]} 14... c5 {[%clk 0:01:54]} 15. e5 {[%clk 0:02:38.1]} 15... d5
{[%clk 0:01:47.5]} 16. h4 {[%clk 0:02:34.1]} 16... b5 {[%clk 0:01:39]} 17. a4
{[%clk 0:02:27.9]} 17... c4 {[%clk 0:01:37.4]} 18. Bc2 {[%clk 0:02:27.8]} 18...
b4 {[%clk 0:01:37.3]} 19. Rae1 {[%clk 0:02:14.5]} 19... a5 {[%clk 0:01:29.5]}
20. Rf2 {[%clk 0:02:07.4]} 20... b3 {[%clk 0:01:20.7]} 21. Bb1 {[%clk
0:02:06.9]} 21... Bc6 {[%clk 0:01:19.7]} 22. h5 {[%clk 0:02:01.2]} 22... g5
{[%clk 0:01:16.3]} 23. Nh2 {[%clk 0:01:53.1]} 23... Bxa4 {[%clk 0:01:12]} 24.
Ref1 {[%clk 0:01:52.9]} 24... Rf8 {[%clk 0:01:09.9]} 25. Rxf7 {[%clk 0:01:45.3]}
25... Rxf7 {[%clk 0:01:00.4]} 26. Bg6 {[%clk 0:01:44.6]} 26... Nf8 {[%clk
0:00:44.5]} 27. Rxf7 {[%clk 0:01:41.2]} 27... Qxf7 {[%clk 0:00:39.4]} 28. Bxf7+
{[%clk 0:01:35]} 28... Kxf7 {[%clk 0:00:40.3]} 29. Nxc4 {[%clk 0:01:34.7]} 29...
Ke7 {[%clk 0:00:34.2]} 30. Nb6 {[%clk 0:01:32.6]} 1-0

[Event "*** Titled Tuesday Blitz"]
[Site "Chess.com"]
[Date "2020.12.01"]
[Round "8"]
[White "nocnypako"]
[Black "karinachess1"]
[Result "0-1"]
[WhiteElo "2580"]
[BlackElo "2504"]
[TimeControl "180+1"]
[EndTime "11:24:54 PST"]
[Termination "karinachess1 won by resignation"]

1. d4 {[%clk 0:03:00.9]} 1... d5 {[%clk 0:02:56.8]} 2. c4 {[%clk 0:02:59.6]}
2... e6 {[%clk 0:02:56.9]} 3. Nc3 {[%clk 0:02:57.5]} 3... Nf6 {[%clk 0:02:57]}
4. cxd5 {[%clk 0:02:56.1]} 4... exd5 {[%clk 0:02:56.9]} 5. Bg5 {[%clk
0:02:52.2]} 5... c6 {[%clk 0:02:56.8]} 6. e3 {[%clk 0:02:51.4]} 6... Be7 {[%clk
0:02:56.7]} 7. Bd3 {[%clk 0:02:50.2]} 7... Nbd7 {[%clk 0:02:48.1]} 8. Nf3 {[%clk
0:02:48.4]} 8... h6 {[%clk 0:02:44.9]} 9. Bh4 {[%clk 0:02:46.8]} 9... Nh5 {[%clk
0:02:45.1]} 10. Bxe7 {[%clk 0:02:45.7]} 10... Qxe7 {[%clk 0:02:46]} 11. Qe2
{[%clk 0:02:38.3]} 11... Nhf6 {[%clk 0:02:17.5]} 12. O-O-O {[%clk 0:02:31.7]}
12... Nb6 {[%clk 0:02:11.7]} 13. Kb1 {[%clk 0:02:31.3]} 13... Be6 {[%clk
0:02:03.8]} 14. Rc1 {[%clk 0:02:24.9]} 14... O-O-O {[%clk 0:02:03.6]} 15. Qc2
{[%clk 0:02:24.3]} 15... Kb8 {[%clk 0:02:01.2]} 16. Na4 {[%clk 0:02:24.2]} 16...
Nxa4 {[%clk 0:02:00.3]} 17. Qxa4 {[%clk 0:02:25.1]} 17... Rc8 {[%clk 0:01:57.8]}
18. Rc3 {[%clk 0:02:24.8]} 18... c5 {[%clk 0:01:18.7]} 19. Qa3 {[%clk
0:02:08.9]} 19... Ne4 {[%clk 0:01:03.4]} 20. Bxe4 {[%clk 0:02:05.4]} 20... dxe4
{[%clk 0:01:04.3]} 21. Nd2 {[%clk 0:02:04.6]} 21... Qg5 {[%clk 0:01:03.8]} 22.
Rxc5 {[%clk 0:01:45.4]} 22... Rxc5 {[%clk 0:00:59.6]} 23. Qxc5 {[%clk
0:01:46.3]} 23... Qxg2 {[%clk 0:00:58.3]} 24. Rc1 {[%clk 0:01:46]} 24... Qxf2
{[%clk 0:00:50.7]} 25. Nxe4 {[%clk 0:01:44.4]} 25... Qf5 {[%clk 0:00:44.7]} 26.
Qc2 {[%clk 0:01:28]} 26... Rc8 {[%clk 0:00:31.5]} 27. Qd3 {[%clk 0:01:27]} 27...
Bxa2+ {[%clk 0:00:26.4]} 0-1

[Event "*** Titled Tuesday Blitz"]
[Site "Chess.com"]
[Date "2020.12.01"]
[Round "8"]
[White "AliKa2810"]
[Black "SergeyShtyka"]
[Result "1-0"]
[WhiteElo "2585"]
[BlackElo "2444"]
[TimeControl "180+1"]
[EndTime "11:25:01 PST"]
[Termination "AliKa2810 won by resignation"]

1. c4 {[%clk 0:02:40.2]} 1... c5 {[%clk 0:03:00.9]} 2. Nc3 {[%clk 0:02:30.3]}
2... Nc6 {[%clk 0:03:00.4]} 3. e3 {[%clk 0:02:29.1]} 3... g6 {[%clk 0:02:59.4]}
4. d4 {[%clk 0:02:29.3]} 4... cxd4 {[%clk 0:02:59.6]} 5. exd4 {[%clk 0:02:29.7]}
5... d6 {[%clk 0:02:59.6]} 6. Nf3 {[%clk 0:02:25.4]} 6... Bg7 {[%clk 0:02:59.5]}
7. Be3 {[%clk 0:02:26]} 7... Bg4 {[%clk 0:02:53.6]} 8. Be2 {[%clk 0:02:23.9]}
8... Nf6 {[%clk 0:02:50.7]} 9. O-O {[%clk 0:02:22.7]} 9... O-O {[%clk 0:02:50]}
10. d5 {[%clk 0:02:20.3]} 10... Nb8 {[%clk 0:02:35.6]} 11. Nd4 {[%clk
0:02:16.3]} 11... Bxe2 {[%clk 0:02:35]} 12. Qxe2 {[%clk 0:02:17.2]} 12... Nbd7
{[%clk 0:02:32.2]} 13. Rac1 {[%clk 0:02:13.3]} 13... a6 {[%clk 0:02:28.6]} 14.
Rfe1 {[%clk 0:02:13.3]} 14... Rc8 {[%clk 0:02:28.2]} 15. Bg5 {[%clk 0:02:08.3]}
15... Re8 {[%clk 0:02:26.4]} 16. b3 {[%clk 0:01:59]} 16... Qa5 {[%clk
0:02:12.4]} 17. h3 {[%clk 0:01:41.4]} 17... Ne5 {[%clk 0:01:41.6]} 18. f4 {[%clk
0:01:23.1]} 18... Ned7 {[%clk 0:01:41.2]} 19. Qe3 {[%clk 0:01:12.6]} 19... Qb6
{[%clk 0:01:30.2]} 20. Rcd1 {[%clk 0:01:04]} 20... Nc5 {[%clk 0:01:17]} 21. f5
{[%clk 0:01:00.7]} 21... Ncd7 {[%clk 0:01:14.2]} 22. Bh6 {[%clk 0:00:55.5]}
22... Ne5 {[%clk 0:01:11.6]} 23. Bxg7 {[%clk 0:00:54.5]} 1-0

[Event "*** Titled Tuesday Blitz"]
[Site "Chess.com"]
[Date "2020.12.01"]
[Round "8"]
[White "biostatistician"]
[Black "Rainmond"]
[Result "1-0"]
[WhiteElo "2599"]
[BlackElo "2785"]
[TimeControl "180+1"]
[EndTime "11:25:06 PST"]
[Termination "biostatistician won by resignation"]

1. d4 {[%clk 0:02:59.4]} 1... Nf6 {[%clk 0:01:55]} 2. Nf3 {[%clk 0:03:00.3]}
2... g6 {[%clk 0:01:54]} 3. c4 {[%clk 0:03:00.7]} 3... e6 {[%clk 0:01:52.5]} 4.
Nc3 {[%clk 0:03:01.6]} 4... d5 {[%clk 0:01:52.6]} 5. Bg5 {[%clk 0:03:01.2]} 5...
c6 {[%clk 0:01:42.8]} 6. e3 {[%clk 0:02:55.2]} 6... Nbd7 {[%clk 0:01:27.1]} 7.
Bd3 {[%clk 0:02:55.2]} 7... Bg7 {[%clk 0:01:26.8]} 8. O-O {[%clk 0:02:55.1]}
8... h6 {[%clk 0:01:26.2]} 9. Bh4 {[%clk 0:02:54.3]} 9... O-O {[%clk 0:01:26.1]}
10. Qe2 {[%clk 0:02:53.7]} 10... Re8 {[%clk 0:01:25.1]} 11. Rad1 {[%clk
0:02:48.8]} 11... a6 {[%clk 0:01:22.4]} 12. e4 {[%clk 0:02:39.4]} 12... g5
{[%clk 0:01:21]} 13. Bg3 {[%clk 0:02:39.3]} 13... b5 {[%clk 0:01:15]} 14. cxd5
{[%clk 0:02:36.4]} 14... exd5 {[%clk 0:01:00.8]} 15. e5 {[%clk 0:02:35.7]} 15...
Nh5 {[%clk 0:00:58.8]} 16. Rfe1 {[%clk 0:02:35.4]} 16... c5 {[%clk 0:00:54.3]}
17. Nxd5 {[%clk 0:02:28.7]} 17... cxd4 {[%clk 0:00:51]} 18. Qe4 {[%clk 0:02:17]}
18... Nxg3 {[%clk 0:00:48.4]} 19. hxg3 {[%clk 0:02:10.9]} 19... Bb7 {[%clk
0:00:41.4]} 20. Qh7+ {[%clk 0:01:54]} 20... Kf8 {[%clk 0:00:38.5]} 21. Be4
{[%clk 0:01:31.3]} 21... Nxe5 {[%clk 0:00:37.4]} 22. Nxd4 {[%clk 0:01:20.9]}
22... Qd6 {[%clk 0:00:26.2]} 23. Qxg7+ {[%clk 0:01:09.5]} 1-0

[Event "*** Titled Tuesday Blitz"]
[Site "Chess.com"]
[Date "2020.12.01"]
[Round "8"]
[White "AlexeiShirov"]
[Black "MarcoRiehle"]
[Result "1-0"]
[WhiteElo "2854"]
[BlackElo "2676"]
[TimeControl "180+1"]
[EndTime "11:25:09 PST"]
[Termination "AlexeiShirov won by resignation"]

1. e4 {[%clk 0:03:00.9]} 1... e5 {[%clk 0:02:59.5]} 2. Nf3 {[%clk 0:03:00.8]}
2... Nf6 {[%clk 0:02:59.7]} 3. Nxe5 {[%clk 0:02:58.9]} 3... Nxe4 {[%clk
0:02:59.8]} 4. Qe2 {[%clk 0:02:57.4]} 4... Qe7 {[%clk 0:02:59.7]} 5. Qxe4 {[%clk
0:02:56.7]} 5... d6 {[%clk 0:03:00.1]} 6. d4 {[%clk 0:02:55.9]} 6... dxe5 {[%clk
0:03:00.3]} 7. dxe5 {[%clk 0:02:54.7]} 7... Nc6 {[%clk 0:03:00.3]} 8. Bb5 {[%clk
0:02:47.3]} 8... Bd7 {[%clk 0:02:59.8]} 9. Nc3 {[%clk 0:02:46.2]} 9... O-O-O
{[%clk 0:02:58.8]} 10. O-O {[%clk 0:02:45.2]} 10... a6 {[%clk 0:02:58]} 11. Ba4
{[%clk 0:02:42.4]} 11... Nxe5 {[%clk 0:02:57.8]} 12. Nd5 {[%clk 0:02:36]} 12...
Qd6 {[%clk 0:02:41.9]} 13. Bb3 {[%clk 0:02:27.9]} 13... f5 {[%clk 0:02:03.4]}
14. Qh4 {[%clk 0:02:21.6]} 14... Bc6 {[%clk 0:01:46.2]} 15. Rd1 {[%clk
0:02:14.8]} 15... Be7 {[%clk 0:01:46]} 16. Nxe7+ {[%clk 0:02:10.8]} 16... Qxe7
{[%clk 0:01:44.6]} 17. Bg5 {[%clk 0:02:10.2]} 17... Rxd1+ {[%clk 0:01:43.1]} 18.
Rxd1 {[%clk 0:02:08.5]} 18... Qc5 {[%clk 0:01:32.6]} 19. Be3 {[%clk 0:02:05.5]}
19... Qb5 {[%clk 0:01:20.7]} 20. Qe7 {[%clk 0:01:45.7]} 20... b6 {[%clk
0:00:58.3]} 21. c4 {[%clk 0:01:42]} 21... Nxc4 {[%clk 0:00:53.2]} 22. Qe6+
{[%clk 0:01:40.5]} 22... Kb7 {[%clk 0:00:51.5]} 23. Qxc4 {[%clk 0:01:39.2]}
23... Qe5 {[%clk 0:00:50.7]} 24. Qd4 {[%clk 0:01:37.1]} 24... Qe7 {[%clk
0:00:48.8]} 25. f3 {[%clk 0:01:34.6]} 25... Re8 {[%clk 0:00:47.8]} 26. Bf2
{[%clk 0:01:33.7]} 26... Qe2 {[%clk 0:00:38]} 27. Qd2 {[%clk 0:01:30.5]} 27...
Qb5 {[%clk 0:00:34.6]} 28. Rc1 {[%clk 0:01:28]} 28... Re2 {[%clk 0:00:31.3]} 29.
Qc3 {[%clk 0:01:27]} 29... Re7 {[%clk 0:00:19.9]} 30. a4 {[%clk 0:01:22.8]} 1-0

[Event "*** Titled Tuesday Blitz"]
[Site "Chess.com"]
[Date "2020.12.01"]
[Round "8"]
[White "Cambek64"]
[Black "JustWatch000"]
[Result "1/2-1/2"]
[WhiteElo "2293"]
[BlackElo "2435"]
[TimeControl "180+1"]
[EndTime "11:25:10 PST"]
[Termination "Game drawn by agreement"]

1. e4 {[%clk 0:02:58.8]} 1... c5 {[%clk 0:00:52]} 2. Nc3 {[%clk 0:02:55.4]} 2...
e6 {[%clk 0:00:51.3]} 3. Nf3 {[%clk 0:02:52.5]} 3... Nc6 {[%clk 0:00:49.8]} 4.
Bb5 {[%clk 0:02:51.4]} 4... Nge7 {[%clk 0:00:49.4]} 5. O-O {[%clk 0:02:50.2]}
5... a6 {[%clk 0:00:48.7]} 6. Bxc6 {[%clk 0:02:50.5]} 6... Nxc6 {[%clk
0:00:49.6]} 7. Re1 {[%clk 0:02:49.2]} 7... Be7 {[%clk 0:00:48.6]} 8. d4 {[%clk
0:02:49.3]} 8... cxd4 {[%clk 0:00:49.4]} 9. Nxd4 {[%clk 0:02:49.5]} 9... O-O
{[%clk 0:00:50.3]} 10. Nxc6 {[%clk 0:02:49.4]} 10... dxc6 {[%clk 0:00:51.2]} 11.
Qxd8 {[%clk 0:02:48.7]} 11... Rxd8 {[%clk 0:00:52.1]} 12. Be3 {[%clk 0:02:48.1]}
12... e5 {[%clk 0:00:51.6]} 13. Rad1 {[%clk 0:02:46.8]} 13... Be6 {[%clk
0:00:51.5]} 14. a3 {[%clk 0:02:46.9]} 14... Rxd1 {[%clk 0:00:49.1]} 15. Rxd1
{[%clk 0:02:46.2]} 15... Rd8 {[%clk 0:00:50]} 16. Rxd8+ {[%clk 0:02:46.4]} 16...
Bxd8 {[%clk 0:00:50.1]} 17. Kf1 {[%clk 0:02:46.6]} 17... f6 {[%clk 0:00:44.9]}
18. Ke1 {[%clk 0:02:46.3]} 18... Kf7 {[%clk 0:00:44.9]} 19. Kd2 {[%clk
0:02:46.8]} 19... Ba5 {[%clk 0:00:45.3]} 20. b4 {[%clk 0:02:45.7]} 20... Bc7
{[%clk 0:00:45.4]} 21. f3 {[%clk 0:02:43.8]} 21... b5 {[%clk 0:00:44.3]} 22. Nd1
{[%clk 0:02:40.2]} 22... a5 {[%clk 0:00:42.7]} 23. Nb2 {[%clk 0:02:39.3]} 23...
a4 {[%clk 0:00:41.1]} 24. c4 {[%clk 0:02:37.8]} 24... g6 {[%clk 0:00:38.8]} 25.
c5 {[%clk 0:02:27.6]} 25... f5 {[%clk 0:00:37.4]} 26. Nd3 {[%clk 0:02:21]} 26...
Bc4 {[%clk 0:00:37.3]} 27. Bf2 {[%clk 0:02:19.3]} 27... Ke6 {[%clk 0:00:35.7]}
28. Bg3 {[%clk 0:02:16.2]} 28... h5 {[%clk 0:00:25.7]} 29. h3 {[%clk 0:02:16.2]}
29... fxe4 {[%clk 0:00:23.2]} 30. fxe4 {[%clk 0:02:15.7]} 30... Bxd3 {[%clk
0:00:23.7]} 31. Kxd3 {[%clk 0:02:14]} 31... Bd8 {[%clk 0:00:24.3]} 32. Bf2
{[%clk 0:02:12.8]} 32... Bg5 {[%clk 0:00:24.2]} 33. Be3 {[%clk 0:02:12.3]} 33...
Kf6 {[%clk 0:00:23]} 34. g3 {[%clk 0:02:09.9]} 34... Bxe3 {[%clk 0:00:16.6]} 35.
Kxe3 {[%clk 0:02:09.9]} 35... Kg5 {[%clk 0:00:16.4]} 36. Kf3 {[%clk 0:02:09.6]}
36... Kh6 {[%clk 0:00:16.3]} 37. h4 {[%clk 0:02:08]} 37... g5 {[%clk 0:00:16.1]}
38. Kg2 {[%clk 0:02:05.4]} 38... Kg6 {[%clk 0:00:15.2]} 39. Kf2 {[%clk
0:02:05.3]} 39... Kf6 {[%clk 0:00:13.9]} 40. Kg2 {[%clk 0:02:03.3]} 1/2-1/2

[Event "*** Titled Tuesday Blitz"]
[Site "Chess.com"]
[Date "2020.12.01"]
[Round "8"]
[White "vwnv7"]
[Black "BJthechessgod"]
[Result "1-0"]
[WhiteElo "2420"]
[BlackElo "2293"]
[TimeControl "180+1"]
[EndTime "11:25:11 PST"]
[Termination "vwnv7 won by resignation"]

1. c4 {[%clk 0:03:00.9]} 1... Nf6 {[%clk 0:02:54.9]} 2. Nf3 {[%clk 0:02:59.1]}
2... e6 {[%clk 0:02:54.5]} 3. d4 {[%clk 0:02:58.7]} 3... b6 {[%clk 0:02:54.6]}
4. g3 {[%clk 0:02:58.4]} 4... Bb7 {[%clk 0:02:55.1]} 5. Bg2 {[%clk 0:02:59]}
5... Be7 {[%clk 0:02:55.2]} 6. O-O {[%clk 0:02:59.5]} 6... O-O {[%clk
0:02:55.9]} 7. Re1 {[%clk 0:02:58.6]} 7... d5 {[%clk 0:02:56.1]} 8. Nc3 {[%clk
0:02:47.7]} 8... dxc4 {[%clk 0:02:54.3]} 9. e4 {[%clk 0:02:44.3]} 9... c5 {[%clk
0:02:50.2]} 10. e5 {[%clk 0:02:27.5]} 10... Nd5 {[%clk 0:02:47.7]} 11. Ne4
{[%clk 0:02:10.3]} 11... cxd4 {[%clk 0:02:42]} 12. Nxd4 {[%clk 0:02:09.1]} 12...
Nc6 {[%clk 0:02:42.7]} 13. Nxc6 {[%clk 0:01:59.5]} 13... Bxc6 {[%clk 0:02:43.6]}
14. Qh5 {[%clk 0:01:56.5]} 14... f5 {[%clk 0:02:22.7]} 15. exf6 {[%clk
0:01:53.7]} 15... Bxf6 {[%clk 0:02:23.1]} 16. Bg5 {[%clk 0:01:38]} 16... Be8
{[%clk 0:02:08.3]} 17. Qg4 {[%clk 0:01:26.7]} 17... Bf7 {[%clk 0:01:50.6]} 18.
Nxf6+ {[%clk 0:01:15.3]} 18... Nxf6 {[%clk 0:01:50.5]} 19. Bxf6 {[%clk 0:01:15]}
19... Qxf6 {[%clk 0:01:49.9]} 20. Bxa8 {[%clk 0:01:15.5]} 20... Rb8 {[%clk
0:01:50.5]} 21. Bg2 {[%clk 0:01:10.1]} 21... Qxb2 {[%clk 0:01:50]} 22. Qxc4
{[%clk 0:01:08.4]} 22... e5 {[%clk 0:01:49.3]} 23. Qc7 {[%clk 0:01:01.3]} 23...
Re8 {[%clk 0:01:46.8]} 24. Qxa7 {[%clk 0:00:58.8]} 24... b5 {[%clk 0:01:46.6]}
25. Rab1 {[%clk 0:00:51.7]} 25... Qc3 {[%clk 0:01:44]} 26. Rec1 {[%clk
0:00:41.8]} 26... Qd3 {[%clk 0:01:43.6]} 27. Qe3 {[%clk 0:00:37.7]} 27... Qd7
{[%clk 0:01:41.3]} 28. Rb2 {[%clk 0:00:35.5]} 28... h6 {[%clk 0:01:33.2]} 29. h4
{[%clk 0:00:33.7]} 29... Qf5 {[%clk 0:01:29.3]} 30. Rxb5 {[%clk 0:00:31.5]}
30... Bxa2 {[%clk 0:01:27.5]} 31. Rc7 {[%clk 0:00:31]} 31... Qf6 {[%clk
0:01:22.3]} 32. Rbb7 {[%clk 0:00:30.5]} 32... g6 {[%clk 0:01:17.3]} 33. Qxh6
{[%clk 0:00:29.2]} 33... Bf7 {[%clk 0:01:15.7]} 34. Rxf7 {[%clk 0:00:28.4]}
34... Qxf7 {[%clk 0:01:16.2]} 35. Rxf7 {[%clk 0:00:28.2]} 35... Kxf7 {[%clk
0:01:17.1]} 36. Bd5+ {[%clk 0:00:28.1]} 1-0

[Event "*** Titled Tuesday Blitz"]
[Site "Chess.com"]
[Date "2020.12.01"]
[Round "8"]
[White "Lupul_Cenusiu"]
[Black "Shuvalov"]
[Result "1-0"]
[WhiteElo "2585"]
[BlackElo "2444"]
[TimeControl "180+1"]
[EndTime "11:25:13 PST"]
[Termination "Lupul_Cenusiu won by resignation"]

1. d4 {[%clk 0:03:00.9]} 1... Nf6 {[%clk 0:02:54.8]} 2. c4 {[%clk 0:03:00.3]}
2... g6 {[%clk 0:02:53.5]} 3. Nc3 {[%clk 0:03:00.6]} 3... d5 {[%clk 0:02:53.7]}
4. cxd5 {[%clk 0:03:00.6]} 4... Nxd5 {[%clk 0:02:54.6]} 5. Bd2 {[%clk
0:03:00.7]} 5... Nb6 {[%clk 0:02:50.3]} 6. Nf3 {[%clk 0:02:59.5]} 6... Bg7
{[%clk 0:02:50.1]} 7. Rc1 {[%clk 0:02:59.5]} 7... O-O {[%clk 0:02:47.5]} 8. h4
{[%clk 0:02:59.2]} 8... Nc6 {[%clk 0:02:39.6]} 9. e3 {[%clk 0:02:58.5]} 9... Bg4
{[%clk 0:02:38.8]} 10. Be2 {[%clk 0:02:57.3]} 10... Qd7 {[%clk 0:02:24]} 11. Ne4
{[%clk 0:02:47.5]} 11... Qc8 {[%clk 0:02:11.1]} 12. Qb3 {[%clk 0:02:30.6]} 12...
Be6 {[%clk 0:01:38.7]} 13. Qa3 {[%clk 0:02:27.8]} 13... Bd5 {[%clk 0:01:33.6]}
14. Nc5 {[%clk 0:02:27.6]} 14... Nd7 {[%clk 0:01:31.7]} 15. e4 {[%clk
0:02:22.2]} 15... Be6 {[%clk 0:01:04.8]} 16. Nxe6 {[%clk 0:02:20.8]} 16... fxe6
{[%clk 0:01:05.7]} 17. Be3 {[%clk 0:02:09]} 17... Nf6 {[%clk 0:00:53.4]} 18. Ng5
{[%clk 0:02:07.7]} 18... h6 {[%clk 0:00:50.3]} 19. Nxe6 {[%clk 0:02:06.9]} 19...
Nxe4 {[%clk 0:00:40.6]} 20. Nxf8 {[%clk 0:02:04.4]} 20... Qxf8 {[%clk
0:00:40.6]} 21. Qb3+ {[%clk 0:02:02.2]} 21... Kh7 {[%clk 0:00:38.7]} 22. Qxb7
{[%clk 0:01:45.8]} 22... Nxd4 {[%clk 0:00:33.5]} 23. Qxe4 {[%clk 0:01:42.4]}
23... Nxe2 {[%clk 0:00:32.5]} 24. Kxe2 {[%clk 0:01:41.5]} 24... h5 {[%clk
0:00:19.4]} 25. b3 {[%clk 0:01:33.6]} 25... Rd8 {[%clk 0:00:17.2]} 26. Rhd1
{[%clk 0:01:32.5]} 26... Rd6 {[%clk 0:00:17.2]} 27. Rxd6 {[%clk 0:01:31.7]}
27... cxd6 {[%clk 0:00:18.1]} 28. Rc7 {[%clk 0:01:28.1]} 28... e5 {[%clk
0:00:17.3]} 29. Qb7 {[%clk 0:01:24.7]} 29... Kg8 {[%clk 0:00:15]} 30. Rxg7+
{[%clk 0:01:23.2]} 30... Qxg7 {[%clk 0:00:15.2]} 31. Qxg7+ {[%clk 0:01:22.7]}
31... Kxg7 {[%clk 0:00:16.1]} 32. Bxa7 {[%clk 0:01:22.2]} 1-0